fUSD/lending_fUSD_20260319
["ID","MTS","AMOUNT","RATE_DAILY","PERIOD"]
[408595035,1773910916379,-7028.10821774,9.558e-05,2]
[408595036,1773910916518,-10000.01,9.558e-05,2]
[408595037,1773910916668,-10000.01,9.558e-05,2]
[408595038,1773910919459,-3171.48759812,9.558e-05,2]
[408595039,1773910919488,-159.54669736,9.566e-05,2]
[408595040,1773910919516,-150.0,9.566e-05,2]
[408595041,1773910919547,-500.0,9.567e-05,2]
[408595042,1773910919575,-448.4088456,9.567e-05,2]
[408595043,1773910919603,-500.0,9.567e-05,2]
[408595044,1773910919718,-141.12371784,9.567e-05,2]
[408595045,1773910922604,-358.87628216,9.567e-05,2]
[408595046,1773910922635,-500.0,9.567e-05,2]
[408595047,1773910922661,-500.0,9.567e-05,2]
[408595048,1773910922691,-500.0,9.567e-05,2]
[408595049,1773910922717,-500.0,9.567e-05,2]
[408595050,1773910922748,-500.0,9.567e-05,2]
[408595051,1773910922774,-500.0,9.567e-05,2]
[408595052,1773910922804,-500.0,9.567e-05,2]
[408595053,1773910922830,-431.51011172,9.567e-05,2]
[408595054,1773910922860,-500.0,9.567e-05,2]
[408595055,1773910923051,-419.23721224,9.567e-05,2]
[408595056,1773910928551,-1000.0,9.567e-05,2]
[408595057,1773910928583,-80.76278776,9.567e-05,2]
[408595058,1773910928617,-500.0,9.567e-05,2]
[408595059,1773910928650,-500.0,9.567e-05,2]
[408595060,1773910928684,-500.0,9.567e-05,2]
[408595061,1773910928717,-500.0,9.567e-05,2]
[408595062,1773910928979,-500.0,9.567e-05,2]
[408595063,1773910929013,-500.0,9.567e-05,2]
[408595064,1773910929047,-500.0,9.567e-05,2]
[408595065,1773910929081,-338.48442448,9.567e-05,2]
[408595066,1773910929292,-161.51557552,9.567e-05,2]
[408595067,1773910931569,-500.0,9.567e-05,2]
[408595068,1773910931604,-500.0,9.567e-05,2]
[408595069,1773910931637,-500.0,9.567e-05,2]
[408595070,1773910931670,-500.0,9.567e-05,2]
[408595071,1773910931703,-500.0,9.567e-05,2]
[408595072,1773910931737,-338.79927318,9.567e-05,2]
[408595073,1773910931768,-500.0,9.567e-05,2]
[408595074,1773910931799,-500.0,9.567e-05,2]
[408595075,1773910931830,-500.0,9.567e-05,2]
[408595076,1773910931860,-500.0,9.567e-05,2]
[408595077,1773910932007,-322.41145364,9.567e-05,2]
[408595081,1773910937271,1632.8649,9.468e-05,2]
[408595084,1773910943495,10000.01,9.468e-05,2]
[408595085,1773910943519,10000.01,9.468e-05,2]
[408595086,1773910943540,10000.01,9.468e-05,2]
[408595087,1773910943564,10000.01,9.468e-05,2]
[408595088,1773910943586,10000.01,9.468e-05,2]
[408595089,1773910943609,9531.7346,9.468e-05,2]
[408595090,1773910949688,468.2754,9.468e-05,2]
[408595091,1773910949715,2031.7246,9.468e-05,2]
[408595098,1773911005146,5000.01,9.468e-05,2]
[408595099,1773911005170,1761.4728,9.468e-05,2]
[408595113,1773911053527,172.29,8.997e-05,2]
[408595114,1773911053727,172.29,9.497e-05,2]
[408595132,1773911106743,258.0,9.497e-05,3]
[408595138,1773911129974,1600.0,9.043e-05,2]
[408595149,1773911177934,5000.01,9.47e-05,2]
[408595150,1773911177955,1665.29790525,9.47e-05,2]
[408595184,1773911210927,5000.01,9.031e-05,2]
[408595187,1773911234665,5000.01,9.468e-05,2]
[408595188,1773911234688,5000.01,9.468e-05,2]
[408595189,1773911234713,5000.01,9.468e-05,2]
[408595190,1773911234736,5000.01,9.468e-05,2]
[408595191,1773911234759,5000.01,9.468e-05,2]
[408595192,1773911234782,5000.01,9.468e-05,2]
[408595193,1773911234808,5000.01,9.468e-05,2]
[408595194,1773911234834,5000.01,9.468e-05,2]
[408595195,1773911234859,5000.01,9.468e-05,2]
[408595196,1773911234885,5000.01,9.468e-05,2]
[408595197,1773911234909,5000.0,9.468e-05,2]
[408595198,1773911234932,10000.01,9.468e-05,2]
[408595199,1773911234956,10000.01,9.468e-05,2]
[408595200,1773911234981,10000.01,9.468e-05,2]
[408595201,1773911235006,10000.01,9.468e-05,2]
[408595202,1773911235038,10000.01,9.468e-05,2]
[408595203,1773911235066,10000.01,9.468e-05,2]
[408595204,1773911235090,10000.01,9.468e-05,2]
[408595205,1773911235113,10000.01,9.468e-05,2]
[408595206,1773911235136,10000.01,9.468e-05,2]
[408595208,1773911247595,-6023.7054,9.08e-05,2]
[408595209,1773911247764,-10000.01,9.08e-05,2]
[408595210,1773911247795,-1164.0154,9.08e-05,2]
[408595211,1773911247827,-2671.9792,9.08e-05,2]
[408595212,1773911247890,-4656.0516,9.468e-05,2]
[408595213,1773911247959,-10000.01,9.468e-05,2]
[408595214,1773911247997,-10000.01,9.468e-05,2]
[408595215,1773911248375,-10000.01,9.468e-05,2]
[408595216,1773911248426,-2640.85167641,9.468e-05,2]
[408595217,1773911248440,-10000.01,9.468e-05,2]
[408595218,1773911248453,-5000.01,9.468e-05,2]
[408595219,1773911248466,-10000.01,9.468e-05,2]
[408595220,1773911248505,-10000.01,9.468e-05,2]
[408595221,1773911248530,-5000.01,9.468e-05,2]
[408595222,1773911248547,-10000.01,9.468e-05,2]
[408595223,1773911248572,-5000.01,9.468e-05,2]
[408595224,1773911248608,-10000.01,9.468e-05,2]
[408595225,1773911248675,-5000.01,9.468e-05,2]
[408595226,1773911248792,-10000.01,9.468e-05,2]
[408595227,1773911248952,-10000.01,9.468e-05,2]
[408595228,1773911249057,-10000.01,9.468e-05,2]
[408595229,1773911253730,-5000.01,9.468e-05,2]
[408595230,1773911253865,-5000.01,9.468e-05,2]
[408595231,1773911253963,-5000.01,9.468e-05,2]
[408595232,1773911254088,-5000.01,9.468e-05,2]
[408595233,1773911256857,-5000.01,9.468e-05,2]
[408595234,1773911259784,-5000.01,9.468e-05,2]
[408595235,1773911259910,-5000.01,9.468e-05,2]
[408595236,1773911260039,-5000.01,9.468e-05,2]
[408595237,1773911260164,-5000.01,9.468e-05,2]
[408595238,1773911262611,5903.718551,9.421e-05,2]
[408595239,1773911262775,-5000.01,9.468e-05,2]
[408595242,1773911265927,-5000.01,9.468e-05,2]
[408595244,1773911266106,-5000.01,9.468e-05,2]
[408595245,1773911266221,-5000.01,9.468e-05,2]
[408595247,1773911266354,-5000.01,9.468e-05,2]
[408595248,1773911266470,-5000.01,9.468e-05,2]
[408595250,1773911266902,-5000.01,9.468e-05,2]
[408595251,1773911267309,-5000.01,9.468e-05,2]
[408595252,1773911267386,-5000.01,9.468e-05,2]
[408595253,1773911267399,-5000.01,9.468e-05,2]
[408595258,1773911268834,-5000.01,9.468e-05,2]
[408595260,1773911277326,4096.291449,9.421e-05,2]
[408595261,1773911277346,7124.768974,9.421e-05,2]
[408595262,1773911290937,2875.241026,9.421e-05,2]
[408595263,1773911290964,487.618174,9.421e-05,2]
[408595264,1773911291073,157.0,9.421e-05,3]
[408595280,1773911366181,-300.0,9.466e-05,2]
[408595281,1773911366201,-704.35376144,9.467e-05,2]
[408595291,1773911431547,-288.40703759,9.461e-05,2]
[408595292,1773911431556,-207.84141061,9.461e-05,2]
[408595293,1773911431601,-20.15858939,9.461e-05,2]
[408595294,1773911431611,-1200.0,9.466e-05,2]
[408595295,1773911431620,-300.0,9.466e-05,2]
[408595296,1773911431629,-1906.04668401,9.467e-05,2]
[408595297,1773911431641,-1082.78131643,9.467e-05,2]
[408595298,1773911431657,-665.1793169,9.467e-05,2]
[408595299,1773911431680,-434.57679024,9.467e-05,2]
[408595300,1773911431711,-207.06213098,9.467e-05,2]
[408595301,1773911431725,-208.84160071,9.467e-05,2]
[408595302,1773911431736,-150.0,9.467e-05,2]
[408595303,1773911431746,-245.0,9.467e-05,3]
[408595304,1773911431755,-159.54669736,9.467e-05,2]
[408595305,1773911431766,-237.17300868,9.467e-05,2]
[408595306,1773911431784,-290.44876776,9.467e-05,2]
[408595307,1773911431819,-209.55123224,9.467e-05,2]
[408595308,1773911431836,-500.0,9.467e-05,2]
[408595309,1773911431853,-500.0,9.467e-05,2]
[408595310,1773911431872,-560.70869093,9.467e-05,2]
[408595311,1773911431888,-453.44357455,9.467e-05,2]
[408595312,1773911431900,-500.0,9.467e-05,2]
[408595313,1773911431912,-500.0,9.467e-05,2]
[408595315,1773911431926,-270.16779019,9.467e-05,2]
[408595316,1773911431936,-500.0,9.467e-05,2]
[408595317,1773911431945,-443.70961904,9.467e-05,2]
[408595318,1773911431954,-53860.30220722,9.468e-05,2]
[408595319,1773911431966,-470.1210855,9.468e-05,2]
[408595336,1773911439792,-917.17647433,9.468e-05,2]
[408595337,1773911439803,-656.33399604,9.468e-05,2]
[408595338,1773911440216,-46331.18141926,9.468e-05,2]
[408595343,1773911442775,-3824.14840998,9.468e-05,2]
[408595344,1773911442789,-1926.61743367,9.468e-05,2]
[408595345,1773911442802,-722.8955016,9.468e-05,2]
[408595346,1773911442908,-1898.88611091,9.468e-05,2]
[408595352,1773911444739,6665.30790525,9.368e-05,2]
[408595356,1773911483877,2690.08392075,9.368e-05,2]
[408595357,1773911483899,4071.39887925,9.368e-05,2]
[408595358,1773911489920,265.712551,9.418e-05,2]
[408595359,1773911490892,4879.691,9.279e-05,2]
[408595360,1773911491033,196.773,9.279e-05,2]
[408595361,1773911582634,168.138,0.00016333,120]
[408595393,1773912084940,-221.0,8.589e-05,2]
[408595394,1773912084964,-2714.1,8.589e-05,2]
[408595403,1773912111068,1689.68,8.529e-05,2]
[408595412,1773912165593,2000.0,8.483e-05,2]
[408595414,1773912186675,1450.9,8.486e-05,2]
[408595416,1773912359213,4282.11,8.538e-05,2]
[408595417,1773912480688,-500.0,8.28e-05,2]
[408595418,1773912495719,-300.0,8.317e-05,2]
[408595419,1773912501334,3115.34,8.202e-05,2]
[408595420,1773912510926,-3196.58745434,8.317e-05,2]
[408595421,1773912527539,-4526.66802743,8.318e-05,2]
[408595422,1773912527622,-10000.01,8.318e-05,2]
[408595423,1773912528096,-10000.01,8.318e-05,2]
[408595424,1773912528127,-10000.01,8.318e-05,2]
[408595425,1773912528160,-4073.34197257,8.318e-05,2]
[408595426,1773912532641,1853.32605486,8.219e-05,2]
[408595427,1773912532662,2063.52394514,8.219e-05,2]
[408595430,1773912542655,-367.96489401,8.589e-05,2]
[408595434,1773912552129,-200.0,8.589e-05,2]
[408595435,1773912552154,-250.0,8.604e-05,2]
[408595436,1773912552175,-250.0,8.62e-05,2]
[408595437,1773912552195,-330.0833987,8.631e-05,2]
[408595438,1773912552214,-300.0,8.634e-05,2]
[408595439,1773912552234,-1200.0,8.634e-05,2]
[408595440,1773912552254,-150.0,8.634e-05,2]
[408595441,1773912552274,-300.0,8.634e-05,2]
[408595442,1773912552295,-1251.6690073,8.635e-05,2]
[408595443,1773912557477,-609.7590073,8.635e-05,2]
[408595444,1773912557526,-4863.6419854,8.635e-05,2]
[408595445,1773912557591,-3916.85,8.635e-05,2]
[408595447,1773912595677,217.71,8.279e-05,2]
[408595448,1773912607721,245.0,8.279e-05,3]
[408595449,1773912615802,500.0,8.266e-05,2]
[408595450,1773912619861,724.0,0.00016329,120]
[408595467,1773912631793,-166.7,8.648e-05,2]
[408595468,1773912631803,-222.0,8.648e-05,2]
[408595469,1773912631813,-1200.0,9.002e-05,2]
[408595470,1773912631823,-300.0,9.002e-05,2]
[408595471,1773912631833,-150.0,9.002e-05,2]
[408595472,1773912631844,-186.13,9.002e-05,2]
[408595473,1773912631857,-113.87,9.002e-05,2]
[408595474,1773912631868,-300.07852867,9.003e-05,2]
[408595475,1773912631878,-500.0,9.003e-05,2]
[408595476,1773912631888,-500.2027226,9.003e-05,2]
[408595477,1773912631899,-167.36781104,9.003e-05,2]
[408595478,1773912631909,-318.38422245,9.003e-05,2]
[408595479,1773912631922,-181.61577755,9.003e-05,2]
[408595480,1773912631933,-500.0,9.003e-05,2]
[408595481,1773912631945,-164.13740161,9.003e-05,2]
[408595482,1773912631955,-500.0,9.003e-05,2]
[408595485,1773912631965,-167.32938806,9.003e-05,2]
[408595487,1773912631976,-500.0,9.003e-05,2]
[408595489,1773912631987,-500.82846399,9.003e-05,2]
[408595491,1773912632001,-500.0,9.003e-05,2]
[408595494,1773912632015,-500.0,9.003e-05,2]
[408595497,1773912632026,-535.44607234,9.003e-05,2]
[408595499,1773912632038,-500.0,9.003e-05,2]
[408595501,1773912632049,-500.0,9.003e-05,2]
[408595503,1773912632060,-504.9390148,9.003e-05,2]
[408595505,1773912632072,-500.0,9.003e-05,2]
[408595507,1773912632083,-167.41696439,9.003e-05,2]
[408595509,1773912632093,-164.94931012,9.003e-05,2]
[408595510,1773912632104,-500.0,9.003e-05,2]
[408595511,1773912632115,-500.0,9.003e-05,2]
[408595512,1773912632126,-501.00729745,9.003e-05,2]
[408595513,1773912632136,-500.0,9.014e-05,2]
[408595514,1773912632147,-500.0,9.022e-05,2]
[408595515,1773912632158,-3598.36954537,9.023e-05,2]
[408595516,1773912632171,-1521.19773247,9.023e-05,2]
[408595517,1773912632184,-743.4792702,9.023e-05,2]
[408595518,1773912632196,-1587808.98048472,9.023e-05,2]
[408595519,1773912632250,-299.23478,9.023e-05,2]
[408595520,1773912632262,-74531.1093171,9.023e-05,2]
[408595521,1773912632275,-2016.34377113,9.023e-05,2]
[408595524,1773912637882,-722.84906833,9.023e-05,2]
[408595525,1773912637894,-315.0,9.023e-05,2]
[408595526,1773912637906,-4090.912774,9.023e-05,2]
[408595527,1773912637937,-3877.65,9.023e-05,2]
[408595528,1773912637949,-1300.0,9.023e-05,2]
[408595533,1773912640067,-2113.01757842,9.023e-05,2]
[408595534,1773912640078,-7685.34254861,9.023e-05,2]
[408595547,1773912642910,-0.01182468,9.023e-05,2]
[408595548,1773912642926,-11761.05306724,9.023e-05,2]
[408595549,1773912642977,-4940.67,9.023e-05,2]
[408595590,1773912808055,1228.32,8.277e-05,2]
[408595591,1773912869621,-300.0,8.842e-05,2]
[408595592,1773912884865,-4459.485,8.843e-05,2]
[408595593,1773912884895,-189.636,8.843e-05,2]
[408595594,1773912884924,-318.30798419,8.843e-05,2]
[408595595,1773912885047,-65.15203162,8.843e-05,2]
[408595596,1773912907169,233.0,8.843e-05,3]
[408595603,1773913014232,200.0,8.9e-05,2]
[408595604,1773913040350,150.0,8.9e-05,2]
[408595605,1773913086831,-628.1322,8.922e-05,2]
[408595606,1773913086865,-1632.8649,8.922e-05,2]
[408595607,1773913086893,-250.0,8.923e-05,2]
[408595608,1773913086922,-2478.0158,8.923e-05,2]
[408595609,1773913086996,-21.9842,8.923e-05,2]
[408595610,1773913087024,-300.0,8.938e-05,2]
[408595611,1773913087052,-300.0,8.938e-05,2]
[408595612,1773913087084,-1200.0,8.939e-05,2]
[408595613,1773913087111,-150.0,8.939e-05,2]
[408595614,1773913087406,-3847.14783162,8.94e-05,2]
[408595615,1773913087420,-10000.01,8.94e-05,2]
[408595616,1773913087462,-10000.01,8.94e-05,2]
[408595617,1773913087494,-10000.01,8.94e-05,2]
[408595618,1773913087525,-10000.01,8.94e-05,2]
[408595619,1773913087561,-10000.01,8.94e-05,2]
[408595620,1773913087579,-10000.01,8.94e-05,2]
[408595621,1773913087607,-10000.01,8.94e-05,2]
[408595622,1773913095451,-1000.0,8.939e-05,2]
[408595623,1773913095491,-8000.01,8.94e-05,2]
[408595624,1773913095537,-10000.01,8.94e-05,2]
[408595625,1773913095645,-10000.01,8.94e-05,2]
[408595626,1773913095765,-10000.01,8.94e-05,2]
[408595627,1773913095881,-10000.01,8.94e-05,2]
[408595628,1773913096022,-10000.01,8.94e-05,2]
[408595629,1773913096140,-10000.01,8.94e-05,2]
[408595630,1773913096276,-10000.01,8.94e-05,2]
[408595631,1773913096407,-10000.01,8.94e-05,2]
[408595632,1773913098695,-10000.01,8.94e-05,2]
[408595633,1773913101538,-4403.85251588,8.94e-05,2]
[408595634,1773913101797,-1192.30496824,8.94e-05,2]
[408595635,1773913103703,500.0,8.822e-05,2]
[408595636,1773913142410,166.0,9.002e-05,2]
[408595637,1773913142707,150.0,9.002e-05,2]
[408595638,1773913146443,9684.01,8.224e-05,2]
[408595639,1773913146467,6993.36,8.224e-05,2]
[408595640,1773913150524,158.0,8.822e-05,3]
[408595641,1773913152441,2848.65,8.84e-05,2]
[408595642,1773913152463,8224.227,8.84e-05,2]
[408595643,1773913158511,1659.0,8.748e-05,2]
[408595644,1773913158664,116.783,8.748e-05,2]
[408595645,1773913158686,1542.217,8.748e-05,2]
[408595646,1773913158822,1659.0,8.748e-05,2]
[408595647,1773913158992,1659.0,8.748e-05,2]
[408595648,1773913159117,1208.08309607,8.94e-05,2]
[408595649,1773913159149,253.43471266,8.94e-05,2]
[408595650,1773913159178,1659.0,8.748e-05,2]
[408595651,1773913159306,1659.0,8.748e-05,2]
[408595652,1773913159483,360.27519127,8.748e-05,2]
[408595653,1773913159504,1298.72480873,8.748e-05,2]
[408595654,1773913159660,1659.0,8.748e-05,2]
[408595655,1773913159817,1659.0,8.748e-05,2]
[408595656,1773913159973,1659.0,8.748e-05,2]
[408595657,1773913160142,1659.0,8.748e-05,2]
[408595658,1773913160327,1659.0,8.748e-05,2]
[408595659,1773913160522,406.28519127,8.748e-05,2]
[408595660,1773913160547,1252.71480873,8.748e-05,2]
[408595661,1773913160668,1659.0,8.748e-05,2]
[408595662,1773913160853,1659.0,8.748e-05,2]
[408595663,1773913161001,1659.0,8.748e-05,2]
[408595664,1773913161489,1659.0,8.748e-05,2]
[408595665,1773913162218,1659.0,8.748e-05,2]
[408595666,1773913163272,452.29519127,8.748e-05,2]
[408595667,1773913163292,1206.70480873,8.748e-05,2]
[408595668,1773913164638,1659.0,8.748e-05,2]
[408595669,1773913166754,1659.0,8.748e-05,2]
[408595670,1773913166807,-500.0,9.003e-05,2]
[408595671,1773913166833,-502.94227375,9.003e-05,2]
[408595672,1773913166860,-500.0,9.003e-05,2]
[408595673,1773913166894,-500.0,9.003e-05,2]
[408595674,1773913166923,-585.19334449,9.003e-05,2]
[408595675,1773913166951,-500.0,9.003e-05,2]
[408595676,1773913166979,-500.0,9.003e-05,2]
[408595677,1773913167006,-313.87862379,9.003e-05,2]
[408595678,1773913167034,-500.0,9.003e-05,2]
[408595679,1773913167063,-574.42695522,9.003e-05,2]
[408595680,1773913168661,47.1276055,8.922e-05,2]
[408595681,1773913168683,2452.8723945,8.922e-05,2]
[408595682,1773913168746,1659.0,8.748e-05,2]
[408595683,1773913171023,1659.0,8.748e-05,2]
[408595684,1773913173600,1679.03956494,8.748e-05,2]
[408595686,1773913179488,-151.0,9.02e-05,2]
[408595687,1773913179518,-151.0,9.02e-05,2]
[408595688,1773913179547,-151.0,9.02e-05,2]
[408595689,1773913179576,-151.0,9.02e-05,2]
[408595690,1773913201142,300.0,9.021e-05,2]
[408595691,1773913201173,300.0,9.021e-05,2]
[408595692,1773913201204,1200.0,9.021e-05,2]
[408595693,1773913201233,222.0,9.021e-05,2]
[408595694,1773913203045,225.0,9.022e-05,2]
[408595695,1773913206576,237.0,9.02e-05,3]
[408595700,1773913273463,500.0,8.822e-05,2]
[408595702,1773913280616,280.52,9.022e-05,2]
[408595704,1773913296154,2864.48,8.175e-05,2]
[408595708,1773913322333,300.0,9.021e-05,2]
[408595709,1773913322517,150.0,9.021e-05,2]
[408595711,1773913330636,287.70846583,9.022e-05,2]
[408595712,1773913330683,2500.0,8.922e-05,2]
[408595714,1773913337680,633.30153417,8.251e-05,2]
[408595715,1773913337702,10000.01,8.251e-05,2]
[408595716,1773913337726,10000.01,8.251e-05,2]
[408595717,1773913337751,10000.01,8.251e-05,2]
[408595718,1773913337773,10000.01,8.251e-05,2]
[408595719,1773913337794,10000.01,8.251e-05,2]
[408595731,1773913453462,3346.15,8.088e-05,2]
[408595732,1773913463878,-300.0,8.25e-05,2]
[408595733,1773913463899,-4700.0,8.251e-05,2]
[408595735,1773913466789,-5000.0,8.251e-05,2]
[408595736,1773913468032,-4503.41846583,8.251e-05,2]
[408595737,1773913468053,-496.58153417,8.658e-05,2]
[408595738,1773913468669,-3.41846583,8.658e-05,2]
[408595739,1773913468700,-500.0,8.658e-05,2]
[408595740,1773913468722,-500.0,8.685e-05,2]
[408595741,1773913468742,-500.0,8.712e-05,2]
[408595742,1773913468762,-500.0,8.74e-05,2]
[408595743,1773913468780,-500.0,8.74e-05,2]
[408595744,1773913468803,-500.0,8.795e-05,2]
[408595745,1773913468827,-437.0,8.822e-05,2]
[408595746,1773913468849,-500.0,8.877e-05,2]
[408595747,1773913468872,-1059.58153417,8.922e-05,2]
[408595748,1773913469221,-5000.0,8.922e-05,2]
[408595749,1773913469619,-5000.0,8.922e-05,2]
[408595750,1773913470748,-5000.0,8.922e-05,2]
[408595751,1773913471318,-5000.0,8.922e-05,2]
[408595752,1773913471897,-5000.0,8.922e-05,2]
[408595754,1773913472453,-5000.0,8.922e-05,2]
[408595755,1773913473092,-5000.0,8.922e-05,2]
[408595756,1773913473671,-5000.0,8.922e-05,2]
[408595757,1773913475106,-5000.0,8.922e-05,2]
[408595758,1773913475745,-5000.0,8.922e-05,2]
[408595759,1773913476495,-5000.0,8.922e-05,2]
[408595760,1773913477164,-5000.0,8.922e-05,2]
[408595761,1773913477760,-5000.0,8.922e-05,2]
[408595762,1773913478393,-5000.0,8.922e-05,2]
[408595763,1773913478988,-5000.0,8.922e-05,2]
[408595764,1773913479574,-5000.0,8.922e-05,2]
[408595765,1773913481023,-5000.0,8.922e-05,2]
[408595766,1773913481650,-5000.0,8.922e-05,2]
[408595767,1773913482288,-5000.0,8.922e-05,2]
[408595768,1773913485871,-5000.0,8.922e-05,2]
[408595769,1773913486560,-5000.0,8.922e-05,2]
[408595770,1773913487163,-5000.0,8.922e-05,2]
[408595772,1773913487949,-5000.0,8.922e-05,2]
[408595773,1773913488577,-5000.0,8.922e-05,2]
[408595774,1773913489429,-5000.0,8.922e-05,2]
[408595775,1773913490039,-5000.0,8.922e-05,2]
[408595776,1773913490669,-5000.0,8.922e-05,2]
[408595777,1773913491280,-5000.0,8.922e-05,2]
[408595779,1773913507792,241.0,8.922e-05,3]
[408595782,1773913527746,-150.0,8.175e-05,2]
[408595783,1773913527767,-150.0,8.832e-05,2]
[408595784,1773913527788,-500.0,8.903e-05,2]
[408595785,1773913527812,-500.0,8.903e-05,2]
[408595786,1773913527839,-500.0,8.903e-05,2]
[408595787,1773913527863,-500.0,8.903e-05,2]
[408595788,1773913527888,-300.0,8.921e-05,2]
[408595789,1773913527918,-1200.0,8.921e-05,2]
[408595790,1773913527946,-150.0,8.921e-05,2]
[408595791,1773913527982,-1050.0,8.921e-05,2]
[408595792,1773913528459,-118.86391975,8.921e-05,2]
[408595793,1773913528486,-1168.86391975,8.921e-05,2]
[408595794,1773913528512,-1168.86391975,8.921e-05,2]
[408595795,1773913528537,-1168.86391975,8.921e-05,2]
[408595796,1773913528563,-1168.86391975,8.921e-05,2]
[408595797,1773913528589,-205.68040125,8.921e-05,2]
[408595798,1773913528913,-963.1835185,8.921e-05,2]
[408595799,1773913528939,-1168.86391975,8.921e-05,2]
[408595800,1773913528966,-1168.86391975,8.921e-05,2]
[408595801,1773913528993,-1168.86391975,8.921e-05,2]
[408595802,1773913529022,-530.22472225,8.921e-05,2]
[408595804,1773913536854,-150.0,8.832e-05,2]
[408595805,1773913536880,-638.6391975,8.921e-05,2]
[408595806,1773913536905,-1168.86391975,8.921e-05,2]
[408595807,1773913536930,-1168.86391975,8.921e-05,2]
[408595808,1773913536956,-1168.86391975,8.921e-05,2]
[408595809,1773913536983,-704.76904325,8.921e-05,2]
[408595810,1773913539141,-464.0948765,8.921e-05,2]
[408595811,1773913539435,-1168.86391975,8.921e-05,2]
[408595812,1773913539461,-1168.86391975,8.921e-05,2]
[408595813,1773913539486,-1168.86391975,8.921e-05,2]
[408595814,1773913539517,-1029.31336425,8.921e-05,2]
[408595816,1773913562809,-300.0,8.92e-05,2]
[408595817,1773913562837,-139.5505555,8.921e-05,2]
[408595818,1773913562863,-1168.86391975,8.921e-05,2]
[408595819,1773913562892,-1168.86391975,8.921e-05,2]
[408595820,1773913562917,-1168.86391975,8.921e-05,2]
[408595821,1773913563250,-1053.85768525,8.921e-05,2]
[408595822,1773913564998,-500.0,8.903e-05,2]
[408595823,1773913565025,-115.0062345,8.921e-05,2]
[408595824,1773913565051,-1168.86391975,8.921e-05,2]
[408595825,1773913565076,-1168.86391975,8.921e-05,2]
[408595826,1773913565101,-1168.86391975,8.921e-05,2]
[408595827,1773913565130,-878.40200625,8.921e-05,2]
[408595828,1773913567717,-500.0,8.903e-05,2]
[408595829,1773913567743,-290.4619135,8.921e-05,2]
[408595830,1773913567769,-1168.86391975,8.921e-05,2]
[408595831,1773913567794,-1168.86391975,8.921e-05,2]
[408595832,1773913567820,-1168.86391975,8.921e-05,2]
[408595833,1773913567845,-702.94632725,8.921e-05,2]
[408595836,1773913607163,-382.28015469,8.903e-05,2]
[408595838,1773913635993,742.2918,8.858e-05,2]
[408595839,1773913642466,4363.86,8.092e-05,2]
[408595841,1773913657392,-117.71984531,8.903e-05,2]
[408595842,1773913657421,-4882.28015469,8.912e-05,2]
[408595843,1773913659114,-117.71984531,8.912e-05,2]
[408595844,1773913659135,-300.0,8.92e-05,2]
[408595845,1773913659157,-2334.9248715,8.92e-05,2]
[408595846,1773913659176,-500.0,8.921e-05,2]
[408595847,1773913659200,-465.9175925,8.921e-05,2]
[408595848,1773913659225,-1168.86391975,8.921e-05,2]
[408595849,1773913659248,-112.57377094,8.921e-05,2]
[408595850,1773913660234,-1056.29014881,8.921e-05,2]
[408595851,1773913660259,-1168.86391975,8.921e-05,2]
[408595852,1773913660284,-1168.86391975,8.921e-05,2]
[408595853,1773913660308,-1168.86391975,8.921e-05,2]
[408595854,1773913660331,-437.11809194,8.921e-05,2]
[408595855,1773913661419,-731.74582781,8.921e-05,2]
[408595856,1773913661444,-1168.86391975,8.921e-05,2]
[408595857,1773913661471,-1168.86391975,8.921e-05,2]
[408595858,1773913661496,-1168.86391975,8.921e-05,2]
[408595859,1773913661519,-761.66241294,8.921e-05,2]
[408595860,1773913662634,-407.20150681,8.921e-05,2]
[408595861,1773913662658,-1168.86391975,8.921e-05,2]
[408595862,1773913662680,-1168.86391975,8.921e-05,2]
[408595863,1773913662704,-1168.86391975,8.921e-05,2]
[408595864,1773913662728,-1086.20673394,8.921e-05,2]
[408595865,1773913663696,-82.65718581,8.921e-05,2]
[408595866,1773913663722,-1168.86391975,8.921e-05,2]
[408595867,1773913663747,-1168.86391975,8.921e-05,2]
[408595868,1773913663775,-1168.86391975,8.921e-05,2]
[408595869,1773913663800,-1168.86391975,8.921e-05,2]
[408595870,1773913663828,-241.88713519,8.921e-05,2]
[408595871,1773913664769,-926.97678456,8.921e-05,2]
[408595872,1773913664794,-1168.86391975,8.921e-05,2]
[408595873,1773913664818,-1168.86391975,8.921e-05,2]
[408595874,1773913664841,-1168.86391975,8.921e-05,2]